bitfinex/quotes_ETHUSD_20220226
["timestamp","ask_amount","ask_price","bid_price","bid_amount"]
[1645862020964,0.1431,2792.6,2792.0,1.0]
[1645862021166,0.1431,2792.6,2792.2,1.0]
[1645862021373,0.00390363,2792.5,2792.2,1.0]
[1645862021567,0.1431,2792.7,2792.2,1.0]
[1645862022401,0.1431,2792.7,2791.5,8.4145]
[1645862022599,0.00390363,2792.6,2791.5,8.4145]
[1645862022799,0.1431,2792.5,2791.5,8.4145]
[1645862022999,0.00390363,2792.4,2791.5,8.4145]
[1645862023203,0.14700363,2792.6,2791.5,7.4145]
[1645862023702,0.14700363,2792.6,2791.9,0.00500431]
[1645862023902,0.1431,2792.6,2791.9,0.00500431]
[1645862024504,1.14987042,2792.2,2791.9,0.00500431]
[1645862024705,1.14987042,2792.2,2791.5,7.4145]
[1645862024903,1.14987042,2792.2,2791.5,7.1645]
[1645862025103,1.14987042,2792.2,2792.1,0.00500413]
[1645862025859,1.14987042,2792.2,2791.5,7.1645]
[1645862026457,1.14987042,2792.2,2792.0,0.00500422]
[1645862027156,1.14987042,2792.2,2791.5,7.1645]
[1645862027358,1.04987042,2792.2,2792.0,0.00500427]
[1645862028363,1.04987042,2792.2,2791.5,7.1645]
[1645862028364,1.94590042,2792.2,2791.5,7.1645]
[1645862028568,0.89603,2792.2,2792.0,0.00500427]
[1645862028962,0.07570173,2792.1,2792.0,0.00500427]
[1645862029598,0.07570173,2792.1,2791.5,7.1645]
[1645862029799,0.07570173,2792.1,2791.9,0.00500431]
[1645862029998,1.0500634,2792.0,2791.9,0.00500431]
[1645862030299,1.12576513,2792.0,2791.9,0.00500431]
[1645862030500,1.42576513,2792.0,2791.9,0.00500431]
[1645862030702,1.42576513,2792.0,2791.5,7.1645]
[1645862030903,0.97183173,2791.9,2791.5,7.1645]
[1645862031104,0.89613,2791.9,2791.8,0.00500441]
[1645862031301,6.41513,2791.9,2791.8,0.00500441]
[1645862031500,4.91513,2791.9,2791.8,0.00500441]
[1645862031704,10.99084519,2791.9,2791.8,0.00500441]
[1645862031902,11.13404519,2791.9,2791.5,7.1645]
[1645862032101,5.0,2791.6,2791.5,7.1645]
[1645862032301,5.77205519,2791.6,2791.5,7.1645]
[1645862032503,6.08194984,2791.6,2791.5,7.1645]
[1645862032903,7.58194984,2791.6,2791.5,7.1645]
[1645862033367,7.43884984,2791.6,2791.5,7.1645]
[1645862033570,7.0,2791.5,2791.4,4.78e-06]
[1645862033777,28.13628247,2791.5,2791.4,4.78e-06]
[1645862033971,1.0,2791.4,2790.8,0.25]
[1645862034169,1.0,2791.4,2789.9,1.2403]
[1645862034170,5.3587,2791.2,2789.9,1.2403]
[1645862034369,1.79305,2791.0,2790.0,1.44415655]
[1645862034569,0.07571519,2790.9,2790.0,1.44415655]
[1645862035379,1.12689767,2790.6,2790.0,1.44415655]
[1645862035970,1.12689767,2790.6,2790.3,0.00484059]
[1645862036771,1.12689767,2790.6,2789.9,1.2403]
[1645862037011,8.0512136,2790.9,2790.3,0.00484059]
[1645862037412,9.0512136,2790.9,2790.3,0.00484059]
[1645862038014,9.0512136,2790.9,2790.4,1.44261415]
[1645862038214,9.0512136,2790.9,2789.9,1.2403]
[1645862038415,9.0512136,2790.9,2790.5,0.00484046]
[1645862039019,1.06389833,2790.8,2790.5,0.00484046]
[1645862039217,1.06389833,2790.8,2789.9,1.2403]
[1645862039414,1.06389833,2790.8,2790.6,0.00468052]
[1645862040220,1.36389833,2790.8,2790.6,0.00388052]
[1645862040417,1.36389833,2790.8,2789.6,1.44125993]
[1645862040418,1.87575346,2790.8,2789.6,1.44125993]
[1645862040671,0.89653,2790.6,2789.6,1.44125993]
[1645862041459,1.19653,2790.6,2789.6,1.44125993]
[1645862041662,1.36496855,2790.6,2789.6,1.44125993]
[1645862041865,0.89662,2790.3,2789.6,1.44125993]
[1645862042164,1.43222569,2790.1,2789.6,1.44125993]
[1645862042764,0.89662,2790.3,2789.6,1.44125993]
[1645862042965,0.89662,2790.3,2789.7,0.0023099]
[1645862043365,3.5,2790.2,2789.7,0.0023099]
[1645862043767,0.1433,2790.1,2789.7,0.0023099]
[1645862043969,0.6623,2790.1,2789.5,0.25]
[1645862044169,1.33399165,2789.9,2788.9,1.0]
[1645862044410,3.5,2789.8,2789.0,1.44082648]
[1645862044710,1.50227233,2789.9,2789.0,1.44082648]
[1645862044910,1.33399165,2789.9,2789.0,1.44082648]
[1645862045310,1.43463099,2789.4,2789.0,1.44082648]
[1645862045513,1.43463099,2789.4,2789.3,0.00469587]
[1645862045713,0.89682,2789.7,2789.3,0.00469587]
[1645862046113,3.5,2789.6,2789.3,0.00469587]
[1645862046312,4.99682,2789.7,2788.8,1.2323]
[1645862046513,1.0,2789.6,2788.8,1.2323]
[1645862046717,2.49682,2789.7,2789.4,0.00469492]
[1645862047113,1.06566202,2789.6,2789.4,0.00469492]
[1645862047513,1.06566202,2789.6,2788.9,1.1143476]
[1645862047713,2.49682,2789.7,2788.9,1.1143476]
[1645862047913,2.49682,2789.7,2789.4,0.00469492]
[1645862048162,1.19682,2789.7,2789.4,0.00469492]
[1645862048759,1.19682,2789.7,2788.8,1.2323]
[1645862048959,1.19682,2789.7,2788.9,1.43721705]
[1645862049159,1.19682,2789.7,2789.4,0.00451885]
[1645862049960,1.38993207,2789.7,2788.8,1.2323]
[1645862050162,0.8969,2789.5,2788.8,1.2323]
[1645862050360,0.8969,2789.5,2788.4,8.014]
[1645862050563,4.31780222,2789.5,2788.5,1.43600304]
[1645862050763,1.39535309,2789.5,2788.6,1.43600304]
[1645862050962,2.39535309,2789.5,2788.7,1.43600304]
[1645862051162,1.12340184,2789.1,2788.4,1.27570325]
[1645862051362,1.12340184,2789.1,2788.3,1.25]
[1645862051363,1.12340184,2789.1,2788.5,1.43392743]
[1645862051562,1.12340184,2789.1,2788.3,1.25]
[1645862051563,1.12340184,2789.1,2788.9,0.00451581]
[1645862052412,1.12340184,2789.1,2788.4,1.40958277]
[1645862052612,2.75405309,2789.5,2788.9,0.00469188]
[1645862052613,2.39535309,2789.5,2788.9,0.00469188]
[1645862052814,1.39535309,2789.5,2788.9,0.00469188]
[1645862053216,1.53875309,2789.5,2788.9,0.00469188]
[1645862053617,1.53875309,2789.5,2788.3,2.14684]
[1645862053817,1.53875309,2789.5,2789.1,0.00469793]
[1645862054718,1.53875309,2789.5,2788.3,1.25]
[1645862054918,1.43260779,2788.9,2788.4,1.4329599]
[1645862055122,1.53875309,2789.5,2788.4,1.4329599]
[1645862055318,2.70315309,2789.5,2788.4,1.4329599]
[1645862055757,3.70315309,2789.5,2788.4,1.4329599]
[1645862055961,4.06185309,2789.5,2788.3,1.0]
[1645862056160,4.06185309,2789.5,2788.4,1.4329212]
[1645862056161,1.27006484,2789.1,2788.4,1.4329212]
[1645862056362,1.27006484,2789.1,2788.8,0.00469814]
[1645862057262,1.27006484,2789.1,2788.3,1.0]
[1645862057463,1.27006484,2789.1,2788.8,0.0046953]
[1645862058266,2.19697,2789.2,2788.8,0.0046953]
[1645862058463,1.3,2789.2,2788.3,1.0]
[1645862058666,1.3,2789.2,2788.8,0.0046953]
[1645862058667,0.6,2789.2,2788.8,0.0046953]
[1645862058864,2.23736,2789.4,2788.8,0.0046953]
[1645862059061,3.08883099,2789.4,2788.8,0.0046953]
[1645862059263,1.93736,2789.4,2788.8,0.0046953]
[1645862059510,1.10720679,2789.0,2787.7,3.0418]
[1645862059709,1.10720679,2789.0,2787.7,4.2127]
[1645862059710,1.0211,2788.9,2787.7,4.2127]
[1645862059906,1.3211,2788.9,2787.7,4.2127]
[1645862060107,6.53194329,2788.9,2787.7,4.2127]
[1645862060312,2.53194329,2788.9,2787.7,4.2127]
[1645862060506,2.17236091,2788.9,2787.9,1.1363045]
[1645862060706,0.89723,2788.6,2787.9,1.1363045]
[1645862060906,0.89723,2788.6,2787.7,4.2127]
[1645862061105,0.89723,2788.6,2788.2,0.00469252]
[1645862061908,0.89723,2788.6,2787.7,1.4209]
[1645862062107,1.39095776,2788.4,2787.7,1.4209]
[1645862062311,2.38830962,2788.6,2788.3,0.00469243]
[1645862062509,2.38830962,2788.6,2788.5,1.61663578]
[1645862062709,1.38830962,2788.6,2788.5,1.61663578]
[1645862064465,1.0,2788.7,2788.5,1.61663578]
[1645862064668,1.3,2788.7,2788.5,1.61663578]
[1645862064868,1.04052,2788.9,2788.5,1.61663578]
[1645862065068,0.1434,2789.2,2788.5,1.61663578]
[1645862065266,1.1385,2789.7,2788.6,3.5]
[1645862065267,0.1434,2789.6,2788.6,3.5]
[1645862065864,0.1434,2789.7,2789.0,0.00469211]
[1645862066668,0.1434,2789.8,2789.0,0.00469211]
[1645862066911,0.5021,2789.8,2788.5,1.61663578]
[1645862067112,3.75,2789.8,2789.2,0.00460458]
[1645862067310,1.25,2789.8,2789.2,0.00460458]
[1645862067516,1.0,2789.8,2789.2,0.00460458]
[1645862067713,3.5,2789.8,2789.2,0.00460458]
[1645862068118,3.5,2789.8,2788.5,1.61663578]
[1645862068119,0.89687,2789.6,2788.5,1.61663578]
[1645862068318,3.6434,2789.5,2789.4,0.00460441]
[1645862068517,0.1434,2789.5,2789.4,0.00460441]
[1645862068918,20.1224,2789.5,2789.4,0.00460441]
[1645862069120,20.1224,2789.5,2788.5,1.61663578]
[1645862069121,0.89717,2789.2,2788.5,1.61663578]
[1645862069317,4.6434,2789.1,2788.5,1.61663578]
[1645862069517,3.9434,2789.1,2788.5,1.61663578]
[1645862069718,1.0,2789.0,2788.5,1.61663578]
[1645862070020,3.5,2788.9,2788.5,1.61663578]
[1645862070219,4.8,2788.9,2788.5,1.61663578]
[1645862070427,4.96688986,2788.9,2788.5,1.61663578]
[1645862070674,5.11028986,2788.9,2788.5,1.61663578]
[1645862071060,0.89715,2788.8,2788.5,1.61663578]
[1645862071862,0.89715,2788.8,2788.5,1.6213346]
[1645862072869,0.89715,2788.8,2788.5,1.61663578]
[1645862073072,0.89715,2788.8,2788.5,1.6213346]
[1645862074072,0.89715,2788.8,2788.5,1.61663578]
[1645862074271,0.89715,2788.8,2788.5,1.6213346]
[1645862075315,0.89715,2788.8,2788.5,1.61663578]
[1645862075513,1.7434,2788.9,2788.5,1.6213279]
[1645862075714,0.4434,2788.9,2788.5,1.6213279]
[1645862076512,0.4434,2788.9,2788.5,1.61663578]
[1645862076712,0.4434,2788.9,2788.6,0.00469208]
[1645862077612,0.4434,2788.9,2788.5,1.61663578]
[1645862077817,0.4434,2788.9,2788.6,0.00469204]
[1645862078680,0.89713,2788.8,2788.6,0.00469204]
[1645862078881,3.5,2788.7,2788.5,1.61663578]
[1645862079081,1.19713,2788.8,2788.6,0.00469249]
[1645862079281,0.89713,2788.8,2788.6,0.00469249]
[1645862080083,0.89713,2788.8,2788.5,1.61663578]
[1645862080282,0.89713,2788.8,2788.6,0.00469253]
[1645862081181,0.89713,2788.8,2788.5,1.61663578]
[1645862081386,0.89713,2788.8,2788.6,0.00469253]
[1645862081582,1.7434,2788.9,2788.6,0.00469253]
[1645862081583,0.7434,2788.9,2788.6,0.00469253]
[1645862081784,0.3,2788.9,2788.6,0.00469253]
[1645862082013,0.1434,2789.3,2788.6,0.00469253]
[1645862082216,0.1434,2789.5,2788.6,0.00469253]
[1645862082416,1.2268,2789.7,2788.5,1.97533578]
[1645862082817,0.07577691,2789.6,2788.8,0.00469229]
[1645862083619,0.07577691,2789.6,2788.6,0.216]
[1645862083920,0.16820782,2789.8,2789.1,0.00469209]
[1645862083921,0.1434,2789.8,2789.1,0.00469209]
[1645862084119,0.07575662,2789.7,2789.1,0.00469209]
[1645862084320,4.0094,2789.9,2789.1,0.00469209]
[1645862084519,0.07575609,2789.8,2789.1,0.00469209]
[1645862084920,0.07575609,2789.8,2788.7,1.36454]
[1645862084921,0.07575609,2789.8,2788.7,1.1852]
[1645862085121,0.07575609,2789.8,2789.3,0.00469201]
[1645862086065,0.07575609,2789.8,2788.7,1.1852]
[1645862086263,0.07575609,2789.8,2789.3,0.00469203]
[1645862086464,1.04233698,2789.7,2789.3,0.00469203]
[1645862086763,0.07575609,2789.6,2789.3,0.00469203]
[1645862087162,0.07575609,2789.6,2789.0,1.40390034]
[1645862087364,0.07575609,2789.5,2789.1,1.43548975]
[1645862087565,0.1434,2789.9,2789.5,0.14624618]
[1645862087764,0.14036655,2790.4,2789.5,0.14624618]
[1645862087765,0.07575312,2789.8,2789.5,0.14624618]
[1645862087966,0.07575312,2789.7,2789.5,0.14624618]
[1645862088270,0.3,2790.3,2789.5,0.14624618]
[1645862088468,0.9516299,2790.3,2789.5,0.14624618]
[1645862088667,0.3757517,2790.2,2789.5,0.14624618]
[1645862088867,1.364096,2790.0,2789.5,0.14624618]
[1645862089067,0.0757517,2789.9,2789.5,0.14624618]
[1645862090117,0.0757517,2789.8,2789.5,0.14624618]
[1645862090316,0.0757517,2789.7,2789.5,0.14624618]
[1645862090518,0.0757517,2789.6,2789.5,0.14624618]
[1645862090919,0.75190449,2790.3,2789.5,1.58243945]
[1645862091116,1.34048962,2790.0,2789.5,0.14624618]
[1645862091317,0.0757517,2789.9,2789.5,0.14624618]
[1645862093366,0.89682,2789.8,2789.5,0.14624618]
[1645862093570,3.5757517,2789.7,2789.5,0.14517461]
[1645862093765,0.1433,2789.6,2789.5,0.14517461]
[1645862093965,0.2190517,2789.6,2789.5,0.14517461]
[1645862095167,0.0757517,2789.6,2789.5,0.14517461]
[1645862098916,2.14693608,2789.9,2789.5,0.14517461]
[1645862098917,0.0757517,2789.8,2789.5,0.14517461]
[1645862099715,0.0757517,2789.9,2789.5,0.14517461]
[1645862100116,0.0757517,2789.7,2789.5,0.14517461]
[1645862100318,0.17118961,2790.2,2789.5,0.14517461]
[1645862100519,1.36832836,2790.1,2789.6,1.43634915]
[1645862100763,0.07574976,2790.0,2789.6,1.43634915]
[1645862100963,0.07574976,2789.9,2789.6,1.43634915]
[1645862101163,0.07574976,2789.8,2789.6,1.43634915]
[1645862101370,2.01663603,2790.4,2789.6,1.43634915]
[1645862101567,2.1893,2790.6,2789.6,2.79504915]
[1645862101568,0.07574607,2790.3,2789.6,2.79504915]
[1645862101770,5.0210611,2790.7,2790.1,1.38822067]
[1645862101771,0.07574607,2790.2,2790.1,1.38822067]
[1645862101966,0.07574607,2790.6,2789.7,3.8587]
[1645862102166,0.07574607,2790.6,2789.8,1.43580887]
[1645862102366,0.07574607,2790.6,2789.9,3.8587]
[1645862102565,0.07574607,2790.5,2790.0,1.43580887]
[1645862102765,0.07574607,2790.4,2790.0,1.43580887]
[1645862102967,0.07574607,2790.3,2790.1,1.10991527]
[1645862103167,0.07574607,2790.2,2790.1,1.46861527]
[1645862103368,0.67615279,2790.8,2790.1,4.96861527]
[1645862103568,0.07574607,2790.7,2790.1,4.96861527]
[1645862103772,0.07574607,2790.6,2790.1,1.46861527]
[1645862103972,0.07574607,2790.5,2790.1,1.10991527]
[1645862104270,0.67615279,2790.9,2790.1,1.10991527]
[1645862104271,0.07574607,2790.4,2790.1,1.10991527]
[1645862104507,0.07574607,2790.3,2790.1,1.10991527]
[1645862104707,0.67615279,2790.9,2790.1,1.10991527]
[1645862104916,0.07573886,2790.9,2790.1,1.10991527]
[1645862105112,0.07573886,2790.8,2790.1,4.60991527]
[1645862105311,0.07573886,2790.7,2790.1,1.10991527]
[1645862105514,0.67615279,2790.9,2790.1,1.10991527]
[1645862105515,0.07573886,2790.6,2790.1,1.10991527]
[1645862105711,0.07573886,2790.5,2790.0,1.0]
[1645862105912,2.05606784,2791.0,2790.0,1.0]
[1645862105913,0.07573886,2790.4,2790.0,1.0]
[1645862106113,0.07573886,2790.3,2790.0,1.0]
[1645862106314,1.80631659,2791.0,2790.0,1.0]
[1645862106315,0.07574161,2790.2,2790.0,1.0]
[1645862106517,0.3587,2790.9,2790.0,1.0]
[1645862106518,0.1433,2790.9,2790.0,1.0]
[1645862106912,1.18704428,2790.4,2789.9,0.04999999]
[1645862107112,0.1433,2790.8,2789.9,0.04999999]
[1645862108161,1.42837411,2790.4,2789.9,0.04999999]
[1645862108357,0.00499999,2789.8,2789.5,1.38887461]
[1645862109658,0.00499999,2789.8,2789.5,0.14517461]
[1645862109862,0.00499999,2789.8,2789.5,0.04517461]
[1645862110759,0.00499999,2789.8,2789.5,1.06094875]
[1645862110960,0.00499999,2789.8,2789.5,0.04517461]
[1645862113418,0.00499999,2789.8,2789.7,1.079182]
[1645862114019,0.00499999,2789.8,2789.5,0.04517461]
[1645862114616,0.00499999,2789.8,2789.5,3.54517461]
[1645862115016,0.00499999,2789.8,2789.5,3.90387461]
[1645862115417,0.00499999,2789.8,2789.6,1.75128126]
[1645862115664,0.00499999,2789.8,2789.7,3.8587]
[1645862115856,0.00499999,2789.8,2789.7,15.8187]
[1645862116060,0.00499999,2789.8,2789.7,15.962]
[1645862116257,0.00499999,2789.8,2789.7,14.962]
[1645862117461,0.00499999,2789.8,2789.7,16.262]
[1645862118263,0.00499999,2789.8,2789.7,17.262]
[1645862119166,0.00499999,2789.8,2789.7,6.302]
[1645862119406,0.00499999,2789.8,2789.7,17.262]
[1645862120003,0.00499999,2789.8,2789.7,6.302]
[1645862120205,0.00499999,2789.8,2789.7,17.262]
[1645862120802,0.00499999,2789.8,2789.7,17.1187]
[1645862121406,0.00499999,2789.8,2789.7,6.1587]
[1645862121804,0.00499999,2789.8,2789.7,5.8]
[1645862122005,0.00499999,2789.8,2789.7,2.3]
[1645862122208,0.00499999,2789.8,2789.7,1.3]
[1645862124265,0.00499999,2789.8,2789.7,1.0]
[1645862125569,0.00499999,2789.8,2789.5,50.04517461]
[1645862126368,1.21907747,2789.7,2789.5,50.04517461]
[1645862126567,0.0757537,2789.6,2789.5,50.04517461]
[1645862127015,0.2190537,2789.6,2789.5,50.04517461]
[1645862129021,0.0757537,2789.6,2789.5,50.04517461]
[1645862135316,0.0757537,2789.6,2789.5,50.04380049]
[1645862139275,0.0757537,2789.7,2789.5,50.04380049]
[1645862141276,1.30820235,2789.6,2789.5,50.04380049]
[1645862141481,1.38395605,2789.6,2789.5,50.04380049]
[1645862141957,7.79242197,2789.6,2789.3,5.92e-05]
[1645862142152,5.67685628,2789.4,2789.3,5.92e-05]
[1645862142352,7.43718348,2789.4,2789.3,5.92e-05]
[1645862142549,0.15810645,2789.3,2788.6,0.25]
[1645862142747,0.15810645,2789.3,2788.2,0.00329706]
[1645862142748,0.7381537,2789.2,2788.2,0.00329706]
[1645862142951,0.0757537,2789.1,2788.2,0.00329706]
[1645862143155,0.89718,2788.9,2788.2,0.00329706]
[1645862143354,1.26917614,2788.8,2788.2,0.00329706]
[1645862143554,1.35192423,2788.9,2788.1,1.41222194]
[1645862143753,0.07908065,2788.8,2788.1,1.415519]
[1645862144853,0.07908065,2788.8,2788.1,0.00329706]
[1645862145057,0.07908065,2788.8,2788.3,0.00500769]
[1645862146068,0.07908065,2788.8,2788.1,0.00329706]
[1645862146268,0.07908065,2788.8,2788.4,0.0050076]
[1645862147268,0.07908065,2788.8,2788.1,0.00329706]
[1645862147468,2.02949722,2788.6,2788.5,0.00500755]
[1645862148276,0.89719,2788.6,2788.5,0.00500755]
[1645862148473,0.89719,2788.6,2788.1,0.00329706]
[1645862148674,0.89719,2788.6,2788.4,0.0050076]
[1645862149720,0.89719,2788.6,2787.8,0.00329706]
[1645862150019,0.3,2788.7,2788.4,0.00500765]
[1645862150218,2.5126066,2788.8,2788.4,0.00500765]
[1645862150219,1.5126066,2788.8,2788.4,0.00500765]
[1645862150518,2.5126066,2788.8,2788.4,0.00500765]
[1645862150721,1.5126066,2788.8,2788.4,0.00500765]
[1645862150921,2.5126066,2788.8,2787.8,0.00329706]
[1645862151119,2.5126066,2788.8,2788.5,0.00500755]
[1645862152220,2.5126066,2788.8,2787.8,0.00329706]
[1645862152423,0.89724,2788.5,2787.8,0.00329706]
[1645862152623,1.40861326,2788.2,2787.8,0.00329706]
[1645862152823,1.40861326,2788.2,2787.7,1.1433]
[1645862153471,1.89724,2788.5,2787.8,0.00436996]
[1645862153669,1.0,2788.5,2787.8,0.00436996]
[1645862153867,0.4434,2788.6,2787.8,0.00766702]
[1645862154068,0.7434,2788.6,2787.9,0.1258688]
[1645862154268,0.60303943,2788.6,2787.9,0.1258688]
[1645862154667,0.60303943,2788.6,2788.1,0.00436971]
[1645862154869,0.45963943,2788.6,2788.1,0.00436971]
[1645862155669,0.45963943,2788.6,2787.9,0.1258688]
[1645862155872,0.45963943,2788.6,2788.2,0.00436963]
[1645862157009,0.45963943,2788.6,2788.0,0.00329706]
[1645862157210,0.45963943,2788.6,2788.3,0.00436959]
[1645862157611,1.1434,2788.7,2788.3,0.00436959]
[1645862157813,0.1434,2788.7,2788.3,0.00436959]
[1645862158013,0.4434,2788.7,2788.0,0.00329706]
[1645862158219,1.4434,2788.7,2787.9,0.1258688]
[1645862158419,1.59951266,2788.7,2788.4,0.00442942]
[1645862158816,2.09209236,2788.6,2788.4,0.00442942]
[1645862159316,1.89951266,2788.7,2787.8,0.00329706]
[1645862159317,2.89951266,2788.7,2787.8,0.00329706]
[1645862159523,2.59951266,2788.7,2788.4,0.00442942]
[1645862160419,2.59951266,2788.7,2787.8,0.00329706]
[1645862160676,0.20881262,2788.3,2787.8,0.00329706]
[1645862160867,0.20881262,2788.3,2787.7,1.1433]
[1645862160868,0.3,2788.3,2787.7,1.1433]
[1645862161065,0.17987382,2788.4,2787.7,1.1433]
[1645862161271,0.89724,2788.6,2787.8,0.00329706]
[1645862161967,0.89724,2788.6,2788.1,0.00442222]
[1645862162167,1.58053283,2788.5,2788.1,0.00442222]
[1645862162367,1.88053283,2788.5,2788.1,0.00442222]
[1645862162568,2.08162999,2788.5,2788.1,0.00442222]
[1645862162768,2.08162999,2788.5,2787.8,0.00329706]
[1645862163168,2.08162999,2788.5,2788.2,0.00442214]
[1645862163373,0.20109716,2788.5,2788.2,0.00442214]
[1645862163573,0.3,2788.4,2788.2,0.00442214]
[1645862163775,0.19490309,2788.4,2788.2,0.00442214]
[1645862163972,2.37170846,2788.6,2787.8,0.1294336]
[1645862164174,1.37170846,2788.6,2787.8,0.1294336]
[1645862164419,1.35557154,2788.5,2788.2,0.00442214]
[1645862164817,1.65557154,2788.5,2788.2,0.00442214]
[1645862165018,0.4967733,2788.5,2788.2,0.00442214]
[1645862165217,2.39109219,2788.6,2787.8,0.1294336]
[1645862165418,0.08002612,2788.5,2788.2,0.0044231]
[1645862165821,0.38002612,2788.5,2788.2,0.0044231]
[1645862166020,0.3,2788.5,2788.2,0.0044231]
[1645862166221,1.40400742,2788.6,2788.2,0.0044231]
[1645862166526,0.08002799,2788.5,2788.0,0.00329706]
[1645862166722,1.40571037,2788.6,2787.9,1.40622301]
[1645862166922,1.40571037,2788.6,2788.2,0.0044231]
[1645862167525,0.08012754,2788.5,2788.2,0.0044231]
[1645862167722,1.40571037,2788.6,2788.0,0.00329706]
[1645862167924,1.40571037,2788.6,2788.3,0.00442305]
[1645862168968,1.40571037,2788.6,2788.0,0.00329706]
[1645862169170,1.40571037,2788.6,2788.3,0.00442288]
[1645862169669,0.08020527,2788.5,2788.3,0.00442288]
[1645862170067,0.08020527,2788.5,2787.8,0.00329706]
[1645862170269,0.08020527,2788.5,2788.3,0.00442292]
[1645862171276,0.08020527,2788.5,2787.8,0.00329706]
[1645862171466,0.08020527,2788.5,2788.3,0.00442292]
[1645862171908,1.54911037,2788.6,2788.3,0.00442292]
[1645862172209,1.0,2788.4,2788.3,0.00362292]
[1645862172409,1.38024528,2788.4,2787.9,1.40738435]
[1645862172608,0.97754528,2788.3,2787.8,0.00329706]
[1645862172808,0.97754528,2788.3,2787.7,1.1433]
[1645862172809,0.08024528,2788.2,2787.7,1.1433]
[1645862173007,0.08024528,2788.2,2787.8,1.4076013]
[1645862174217,0.08024528,2788.2,2787.6,0.25]
[1645862174218,1.0,2787.9,2787.6,0.25]
[1645862174414,1.49680528,2787.8,2787.4,0.00329706]
[1645862174614,0.08024528,2787.7,2787.2,0.00329706]
[1645862174812,0.519,2787.6,2786.9,1.41157061]
[1645862175012,0.819,2787.6,2786.9,1.41157061]
[1645862175211,1.0115658,2787.6,2786.9,1.41157061]
[1645862175682,1.0,2787.5,2786.9,1.41157061]
[1645862175872,1.519,2787.5,2786.9,1.41157061]
[1645862176276,1.519,2787.5,2787.1,0.00500559]
[1645862176677,1.519,2787.5,2787.2,1.40727517]
[1645862177477,1.519,2787.5,2787.2,0.00466941]
[1645862177879,2.34099,2787.6,2787.3,1.40734888]
[1645862178083,1.3,2787.6,2787.3,1.40734888]
[1645862178279,0.6,2787.7,2787.3,1.40734888]
[1645862178479,0.3,2787.7,2787.3,1.40734888]
[1645862178680,2.3,2787.9,2787.4,1.40734888]
[1645862178879,1.3,2787.9,2787.3,0.00796638]
[1645862179079,1.3,2787.9,2787.4,1.40620837]
[1645862179080,0.3,2787.9,2787.4,1.40620837]
[1645862179280,5.17038193,2788.2,2787.4,1.40620837]
[1645862179510,1.1974,2788.0,2787.4,1.40620837]
[1645862179707,0.08033947,2787.9,2787.4,1.40620837]
[1645862179906,0.08033947,2787.9,2787.7,0.00466904]
[1645862180109,1.11504301,2787.9,2787.7,0.00466904]
[1645862180310,0.0803826,2787.8,2787.7,0.00466904]
[1645862180712,0.0803826,2787.9,2787.7,0.00466904]
[1645862181013,0.0803826,2787.9,2787.6,0.00452964]
[1645862182113,0.0803826,2787.9,2787.2,0.00329706]
[1645862182310,0.0803826,2787.9,2787.6,0.0045523]
[1645862183363,0.0803826,2787.9,2787.2,0.00329706]
[1645862183565,0.0803826,2787.9,2787.6,0.0045523]
[1645862184564,0.0803826,2787.9,2787.2,0.00329706]
[1645862184767,0.0803826,2787.9,2787.6,0.00469174]
[1645862185767,0.0803826,2787.9,2787.2,0.00329706]
[1645862185969,0.0803826,2787.9,2787.6,0.00469492]
[1645862186918,0.0803826,2787.9,2787.2,0.00329706]
[1645862187220,0.0803826,2787.9,2787.6,0.00469492]
[1645862188020,0.0803826,2787.9,2787.2,0.00331892]
[1645862188225,0.0803826,2787.9,2787.1,1.40821463]
[1645862188429,0.0803826,2787.9,2787.6,0.00469492]
[1645862189225,0.0803826,2787.9,2787.2,0.00331892]
[1645862189428,0.0803826,2787.9,2787.1,1.40830773]
[1645862189628,0.0803826,2787.9,2787.6,0.00469]
[1645862190428,0.0803826,2787.9,2787.2,0.00331892]
[1645862190661,0.0803826,2787.9,2787.6,0.00469]
[1645862191661,0.0803826,2787.9,2787.2,0.00331892]
[1645862191961,0.0803826,2787.9,2787.6,0.00469]
[1645862191962,1.01809499,2787.7,2787.6,0.00469]
[1645862192162,0.3803826,2787.7,2787.6,0.00469]
[1645862192363,0.53736422,2787.7,2787.6,0.00469]
[1645862192763,0.53736422,2787.7,2787.6,0.00389]
[1645862192965,0.0803826,2787.7,2787.3,1.40969439]
[1645862193163,0.3,2787.6,2787.5,0.00469041]
[1645862193370,0.0803826,2787.6,2787.5,0.00469041]
[1645862193569,0.3803826,2787.6,2787.5,0.00469041]
[1645862194170,0.3803826,2787.6,2787.0,0.00331892]
[1645862194413,0.0803826,2787.5,2786.9,1.40943301]
[1645862196813,0.0803826,2787.5,2787.1,0.00500559]
[1645862197014,0.0803826,2787.5,2787.2,1.40943301]
[1645862197917,0.0803826,2787.5,2787.3,1.40943301]
[1645862198967,0.3,2787.6,2787.3,1.40943301]
[1645862199267,0.3,2787.6,2787.4,1.40943301]
[1645862200068,0.5,2787.7,2787.4,1.40943301]
[1645862200373,0.5,2787.7,2787.5,1.40943301]
[1645862201569,0.5,2787.7,2787.6,1.40943301]
[1645862202621,0.5,2787.7,2787.5,1.37604704]
[1645862202820,0.5,2787.7,2787.6,1.40943301]
[1645862203130,0.1434,2788.6,2787.6,16.22813301]
[1645862203324,0.08071985,2788.5,2787.8,0.3587]
[1645862203525,0.08071985,2788.4,2788.1,0.3587]
[1645862203725,0.67685628,2789.3,2788.3,1.2555563]
[1645862203928,0.75748353,2789.3,2788.6,0.89678]
[1645862204225,0.08062725,2789.2,2788.7,4.90943301]
[1645862204426,0.08062725,2789.1,2788.7,4.5]
[1645862204624,0.67685628,2789.5,2788.8,1.40203729]
[1645862204824,0.08062725,2789.4,2788.9,3.5]
[1645862205031,0.67685628,2789.6,2788.9,3.5]
[1645862205032,0.08062725,2789.3,2788.9,3.5]
[1645862205225,0.08062725,2789.2,2788.9,3.5]
[1645862205430,0.1434,2789.7,2789.0,1.40181363]
[1645862205431,0.08062725,2789.1,2789.0,1.40181363]
[1645862205686,0.08062725,2789.6,2789.0,1.40181363]
[1645862205871,0.08062725,2789.5,2789.0,1.40181363]
[1645862206071,0.08062725,2789.4,2789.0,1.40181363]
[1645862206274,0.00499999,2789.8,2788.7,1.52993689]
[1645862206275,0.08062725,2789.3,2788.7,1.52993689]
[1645862206573,0.08062725,2789.2,2788.8,1.39939242]
[1645862206875,0.00499999,2789.8,2788.8,4.89939242]
[1645862207079,0.0859735,2789.7,2788.9,1.39939242]
[1645862208075,0.0859735,2789.7,2788.7,2.42670689]
[1645862208283,0.0859735,2789.7,2789.2,1.12267624]